[Event "Titled Tuesday Blitz February 28 Early 2023"]
[White "Flis, Pawel"]
[Black "Einarsson, Halldor Gretar"]
[WhiteFideId "1112864"]
[BlackFideId "2300150"]
[WhiteElo "1822"]
[BlackElo "2126"]
[Result "0-1"]
[Round "11"]
[TimeControl "180+2"]
[Date "2023.02.28"]
[WhiteClock "0:00:06"]
[BlackClock "0:00:15"]

1. e4 {[%clk 0:03:00]}  c5 {[%clk 0:02:58]} 2. Nf3 {[%clk 0:02:58]}  Nc6 {[%clk 0:02:58]} 3. d4 {[%clk 0:02:58]}  cxd4 {[%clk 0:02:58]} 4. Nxd4 {[%clk 0:02:59]}  Nf6 {[%clk 0:02:58]} 5. Nc3 {[%clk 0:02:59]}  e5 {[%clk 0:02:58]} 6. Ndb5 {[%clk 0:02:59]}  d6 {[%clk 0:02:59]} 7. Bg5 {[%clk 0:02:58]}  a6 {[%clk 0:02:59]} 8. Na3 {[%clk 0:02:59]}  b5 {[%clk 0:02:59]} 9. Nd5 {[%clk 0:02:58]}  Be7 {[%clk 0:02:59]} 10. Bxf6 {[%clk 0:02:59]}  Bxf6 {[%clk 0:02:59]} 11. c3 {[%clk 0:02:59]}  Bg5 {[%clk 0:02:58]} 12. Nc2 {[%clk 0:02:59]}  O-O {[%clk 0:02:57]} 13. a4 {[%clk 0:02:59]}  bxa4 {[%clk 0:02:56]} 14. Rxa4 {[%clk 0:02:59]}  a5 {[%clk 0:02:56]} 15. Nce3 {[%clk 0:02:55]}  Be6 {[%clk 0:02:49]} 16. Bc4 {[%clk 0:02:54]}  Rb8 {[%clk 0:02:48]} 17. b3 {[%clk 0:02:54]}  Kh8 {[%clk 0:02:45]} 18. O-O {[%clk 0:02:52]}  g6 {[%clk 0:02:24]} 19. Qd3 {[%clk 0:02:37]}  f5 {[%clk 0:01:51]} 20. exf5 {[%clk 0:02:20]}  gxf5 {[%clk 0:01:47]} 21. Bb5 {[%clk 0:01:28]}  e4 {[%clk 0:01:38]} 22. Qe2 {[%clk 0:01:23]}  Ne5 {[%clk 0:01:33]} 23. c4 {[%clk 0:01:09]}  Nd3 {[%clk 0:01:15]} 24. g3 {[%clk 0:00:30]}  Ne5 {[%clk 0:00:59]} 25. Kg2 {[%clk 0:00:22]}  f4 {[%clk 0:00:37]} 26. Nxf4 {[%clk 0:00:19]}  Bxf4 {[%clk 0:00:35]} 27. gxf4 {[%clk 0:00:19]}  Rxf4 {[%clk 0:00:34]} 28. Kh1 {[%clk 0:00:18]}  Nf3 {[%clk 0:00:31]} 29. Ng2 {[%clk 0:00:16]}  Rh4 {[%clk 0:00:28]} 30. Qb2+ {[%clk 0:00:10]}  Kg8 {[%clk 0:00:21]} 31. Nxh4 {[%clk 0:00:06]}  Qxh4 {[%clk 0:00:20]} 32. Rg1+ {[%clk 0:00:06]}  Nxg1 {[%clk 0:00:18]} 33. Kxg1 {[%clk 0:00:06]}  Bh3 {[%clk 0:00:15]} 0-1


[Site "https://www.chess.com"]

[Event "Titled Tuesday Blitz February 28 Early 2023"]
[White "Qashashvili, Alexandre"]
[Black "Jesusesmifuerza"]
[WhiteFideId "13600842"]
[WhiteElo "2405"]
[BlackElo "2027"]
[Result "1/2-1/2"]
[Round "11"]
[TimeControl "180+2"]
[Date "2023.02.28"]
[WhiteClock "0:02:36"]
[BlackClock "0:02:06"]

1. e4 {[%clk 0:03:00]}  c5 {[%clk 0:02:59]} 2. Nc3 {[%clk 0:03:00]}  e6 {[%clk 0:02:59]} 3. Nf3 {[%clk 0:03:00]}  Nc6 {[%clk 0:02:59]} 4. d4 {[%clk 0:03:00]}  cxd4 {[%clk 0:03:00]} 5. Nxd4 {[%clk 0:02:59]}  Nf6 {[%clk 0:03:00]} 6. Nxc6 {[%clk 0:02:59]}  bxc6 {[%clk 0:03:01]} 7. Bd3 {[%clk 0:02:58]}  d5 {[%clk 0:03:00]} 8. exd5 {[%clk 0:02:59]}  cxd5 {[%clk 0:02:59]} 9. O-O {[%clk 0:02:59]}  Be7 {[%clk 0:02:57]} 10. Bg5 {[%clk 0:02:58]}  O-O {[%clk 0:02:57]} 11. h3 {[%clk 0:02:57]}  h6 {[%clk 0:02:57]} 12. Bh4 {[%clk 0:02:56]}  Bb7 {[%clk 0:02:53]} 13. Re1 {[%clk 0:02:56]}  a6 {[%clk 0:02:49]} 14. a3 {[%clk 0:02:55]}  Qc7 {[%clk 0:02:49]} 15. Ne2 {[%clk 0:02:54]}  e5 {[%clk 0:02:46]} 16. c3 {[%clk 0:02:49]}  Nh5 {[%clk 0:02:19]} 17. Bxe7 {[%clk 0:02:47]}  Qxe7 {[%clk 0:02:20]} 18. Nd4 {[%clk 0:02:37]}  Nf4 {[%clk 0:02:07]} 19. Nf5 {[%clk 0:02:36]}  Qg5 {[%clk 0:02:06]} 1/2-1/2


[Site "https://www.chess.com"]

[Event "Titled Tuesday Blitz February 28 Early 2023"]
[White "Martin, Lewis"]
[Black "Bashirli, Saadat"]
[WhiteFideId "410551"]
[BlackFideId "13429990"]
[WhiteElo "2145"]
[BlackElo "1408"]
[Result "0-1"]
[Round "11"]
[TimeControl "180+2"]
[Date "2023.02.28"]
[WhiteClock "0:00:28"]
[BlackClock "0:01:18"]

1. e4 {[%clk 0:02:48]}  c5 {[%clk 0:02:59]} 2. Nf3 {[%clk 0:02:47]}  g6 {[%clk 0:03:00]} 3. d4 {[%clk 0:02:47]}  cxd4 {[%clk 0:03:01]} 4. Nxd4 {[%clk 0:02:47]}  Nc6 {[%clk 0:03:01]} 5. Nc3 {[%clk 0:02:48]}  Bg7 {[%clk 0:02:59]} 6. Be3 {[%clk 0:02:47]}  Nf6 {[%clk 0:03:00]} 7. Be2 {[%clk 0:02:46]}  O-O {[%clk 0:02:59]} 8. Nb3 {[%clk 0:02:46]}  d6 {[%clk 0:02:53]} 9. f4 {[%clk 0:02:46]}  a5 {[%clk 0:02:50]} 10. a3 {[%clk 0:02:44]}  Bd7 {[%clk 0:02:45]} 11. O-O {[%clk 0:02:44]}  Rb8 {[%clk 0:02:42]} 12. h3 {[%clk 0:02:40]}  Be6 {[%clk 0:02:33]} 13. Bf3 {[%clk 0:02:35]}  Nd7 {[%clk 0:02:29]} 14. g4 {[%clk 0:02:31]}  Bxb3 {[%clk 0:02:27]} 15. cxb3 {[%clk 0:02:30]}  b5 {[%clk 0:02:27]} 16. Qd2 {[%clk 0:02:27]}  b4 {[%clk 0:02:24]} 17. Nd5 {[%clk 0:02:20]}  bxa3 {[%clk 0:02:20]} 18. Rxa3 {[%clk 0:02:20]}  Nc5 {[%clk 0:02:14]} 19. Qc2 {[%clk 0:02:02]}  Nd4 {[%clk 0:02:09]} 20. Bxd4 {[%clk 0:01:59]}  Bxd4+ {[%clk 0:02:10]} 21. Kg2 {[%clk 0:01:59]}  Rc8 {[%clk 0:02:01]} 22. Qd2 {[%clk 0:01:56]}  Bg7 {[%clk 0:01:58]} 23. Re1 {[%clk 0:01:32]}  Rb8 {[%clk 0:01:53]} 24. Qc2 {[%clk 0:01:31]}  Rc8 {[%clk 0:01:45]} 25. Nc3 {[%clk 0:01:24]}  Na6 {[%clk 0:01:42]} 26. Qe2 {[%clk 0:01:18]}  Nb4 {[%clk 0:01:39]} 27. Rc1 {[%clk 0:01:13]}  Qb6 {[%clk 0:01:35]} 28. e5 {[%clk 0:00:54]}  dxe5 {[%clk 0:01:32]} 29. fxe5 {[%clk 0:00:55]}  Rfd8 {[%clk 0:01:29]} 30. Raa1 {[%clk 0:00:42]}  Nd3 {[%clk 0:01:26]} 31. Qe4 {[%clk 0:00:31]}  Nxc1 {[%clk 0:01:23]} 32. Rxc1 {[%clk 0:00:32]}  Rd2+ {[%clk 0:01:22]} 33. Kg3 {[%clk 0:00:30]}  Qf2+ {[%clk 0:01:19]} 34. Kf4 {[%clk 0:00:30]}  Bh6+ {[%clk 0:01:19]} 35. g5 {[%clk 0:00:30]}  Qh4+ {[%clk 0:01:19]} 36. Ke3 {[%clk 0:00:30]}  Bxg5+ {[%clk 0:01:17]} 37. Qf4 {[%clk 0:00:28]}  Qxf4# {[%clk 0:01:18]} 0-1


[Site "https://www.chess.com"]

[Event "Titled Tuesday Blitz February 28 Early 2023"]
[White "Mendez Machado, Andre"]
[Black "Necula, Iulian"]
[WhiteFideId "6603793"]
[BlackFideId "1232380"]
[WhiteElo "1989"]
[BlackElo "1790"]
[Result "1-0"]
[Round "11"]
[TimeControl "180+2"]
[Date "2023.02.28"]
[WhiteClock "0:02:12"]
[BlackClock "0:02:02"]

1. e4 {[%clk 0:03:00]}  d6 {[%clk 0:03:00]} 2. d4 {[%clk 0:03:00]}  Nf6 {[%clk 0:03:01]} 3. Nc3 {[%clk 0:03:00]}  e5 {[%clk 0:03:01]} 4. dxe5 {[%clk 0:02:59]}  dxe5 {[%clk 0:03:01]} 5. Qxd8+ {[%clk 0:02:59]}  Kxd8 {[%clk 0:03:02]} 6. Nf3 {[%clk 0:02:59]}  Bd6 {[%clk 0:03:01]} 7. Bg5 {[%clk 0:02:59]}  h6 {[%clk 0:02:53]} 8. Bxf6+ {[%clk 0:02:58]}  gxf6 {[%clk 0:02:54]} 9. O-O-O {[%clk 0:02:58]}  Ke7 {[%clk 0:02:53]} 10. Nd5+ {[%clk 0:02:56]}  Ke6 {[%clk 0:02:53]} 11. g3 {[%clk 0:02:54]}  f5 {[%clk 0:02:28]} 12. Bh3 {[%clk 0:02:51]}  f6 {[%clk 0:02:26]} 13. Bxf5+ {[%clk 0:02:47]}  Kf7 {[%clk 0:02:26]} 14. Nh4 {[%clk 0:02:43]}  Bxf5 {[%clk 0:02:24]} 15. Nxf5 {[%clk 0:02:44]}  Nc6 {[%clk 0:02:15]} 16. Rd3 {[%clk 0:02:31]}  Ne7 {[%clk 0:02:03]} 17. Ndxe7 {[%clk 0:02:12]}  Bxe7 {[%clk 0:02:02]} 18. Rd7 {[%clk 0:02:12]} 1-0


[Site "https://www.chess.com"]

[Event "Titled Tuesday Blitz February 28 Early 2023"]
[White "Zaichenko, Daria"]
[Black "Tagliati, Eleonore"]
[WhiteFideId "4197453"]
[BlackFideId "45172234"]
[WhiteElo "2039"]
[BlackElo "2212"]
[Result "1/2-1/2"]
[Round "11"]
[TimeControl "180+2"]
[Date "2023.02.28"]
[WhiteClock "0:00:06"]
[BlackClock "0:00:13"]

1. e4 {[%clk 0:03:00]}  c5 {[%clk 0:03:00]} 2. Nf3 {[%clk 0:02:56]}  Nc6 {[%clk 0:03:00]} 3. d4 {[%clk 0:02:56]}  cxd4 {[%clk 0:03:01]} 4. Nxd4 {[%clk 0:02:57]}  Nf6 {[%clk 0:03:02]} 5. Nc3 {[%clk 0:02:57]}  e5 {[%clk 0:03:02]} 6. Ndb5 {[%clk 0:02:56]}  d6 {[%clk 0:03:02]} 7. Bg5 {[%clk 0:02:55]}  a6 {[%clk 0:03:03]} 8. Na3 {[%clk 0:02:55]}  b5 {[%clk 0:03:03]} 9. Nd5 {[%clk 0:02:55]}  Be7 {[%clk 0:03:03]} 10. Bxf6 {[%clk 0:02:54]}  Bxf6 {[%clk 0:03:04]} 11. c3 {[%clk 0:02:55]}  O-O {[%clk 0:03:00]} 12. Nc2 {[%clk 0:02:54]}  Rb8 {[%clk 0:03:00]} 13. Be2 {[%clk 0:02:52]}  Bg5 {[%clk 0:02:59]} 14. O-O {[%clk 0:02:52]}  g6 {[%clk 0:02:57]} 15. f4 {[%clk 0:02:43]}  exf4 {[%clk 0:02:54]} 16. Nxf4 {[%clk 0:02:43]}  Ne5 {[%clk 0:02:51]} 17. Nd5 {[%clk 0:02:37]}  Be6 {[%clk 0:02:50]} 18. Nd4 {[%clk 0:02:32]}  Bxd5 {[%clk 0:02:46]} 19. exd5 {[%clk 0:02:33]}  Be3+ {[%clk 0:02:46]} 20. Kh1 {[%clk 0:02:32]}  Qh4 {[%clk 0:02:43]} 21. Nf3 {[%clk 0:02:11]}  Nxf3 {[%clk 0:02:38]} 22. Bxf3 {[%clk 0:02:10]}  Bf4 {[%clk 0:02:37]} 23. g3 {[%clk 0:02:05]}  Bxg3 {[%clk 0:02:37]} 24. Qc2 {[%clk 0:02:05]}  b4 {[%clk 0:02:32]} 25. c4 {[%clk 0:02:03]}  Be5 {[%clk 0:02:32]} 26. Rae1 {[%clk 0:02:01]}  a5 {[%clk 0:02:30]} 27. b3 {[%clk 0:02:01]}  Rbe8 {[%clk 0:02:26]} 28. Re4 {[%clk 0:02:00]}  Qh3 {[%clk 0:02:22]} 29. Bg4 {[%clk 0:01:56]}  Qc3 {[%clk 0:02:16]} 30. Qg2 {[%clk 0:01:54]}  Kh8 {[%clk 0:02:12]} 31. Ree1 {[%clk 0:01:51]}  f5 {[%clk 0:02:10]} 32. Bf3 {[%clk 0:01:47]}  Qd4 {[%clk 0:02:07]} 33. Rd1 {[%clk 0:01:46]}  Qh4 {[%clk 0:02:06]} 34. Rde1 {[%clk 0:01:41]}  g5 {[%clk 0:02:03]} 35. Bd1 {[%clk 0:01:34]}  g4 {[%clk 0:02:00]} 36. Qf2 {[%clk 0:01:34]}  Qh3 {[%clk 0:01:50]} 37. Qg2 {[%clk 0:01:29]}  Qh4 {[%clk 0:01:45]} 38. Re2 {[%clk 0:01:19]}  Qg5 {[%clk 0:01:43]} 39. Ref2 {[%clk 0:01:17]}  h5 {[%clk 0:01:42]} 40. h3 {[%clk 0:01:12]}  Qh4 {[%clk 0:01:38]} 41. Rxf5 {[%clk 0:01:12]}  Rg8 {[%clk 0:01:22]} 42. Rf7 {[%clk 0:00:47]}  Rg7 {[%clk 0:00:59]} 43. R1f5 {[%clk 0:00:35]}  Rxf7 {[%clk 0:00:40]} 44. Rxf7 {[%clk 0:00:35]}  Qe1+ {[%clk 0:00:39]} 45. Rf1 {[%clk 0:00:34]}  Qe3 {[%clk 0:00:30]} 46. hxg4 {[%clk 0:00:30]}  h4 {[%clk 0:00:31]} 47. Qf3 {[%clk 0:00:24]}  Qxf3+ {[%clk 0:00:22]} 48. Bxf3 {[%clk 0:00:23]}  Rf8 {[%clk 0:00:21]} 49. Kg2 {[%clk 0:00:21]}  Kg7 {[%clk 0:00:21]} 50. Be2 {[%clk 0:00:19]}  Rxf1 {[%clk 0:00:19]} 51. Bxf1 {[%clk 0:00:19]}  Kf6 {[%clk 0:00:20]} 52. Kf3 {[%clk 0:00:19]}  Kg5 {[%clk 0:00:20]} 53. Bh3 {[%clk 0:00:18]}  Bg3 {[%clk 0:00:20]} 54. Ke4 {[%clk 0:00:18]}  Kf6 {[%clk 0:00:20]} 55. Bg2 {[%clk 0:00:15]}  Kg5 {[%clk 0:00:20]} 56. Bh3 {[%clk 0:00:15]}  Kg6 {[%clk 0:00:17]} 57. Bg2 {[%clk 0:00:15]}  Kh6 {[%clk 0:00:18]} 58. Kf5 {[%clk 0:00:13]}  Kg7 {[%clk 0:00:16]} 59. Bh3 {[%clk 0:00:12]}  Kh6 {[%clk 0:00:16]} 60. g5+ {[%clk 0:00:12]}  Kg7 {[%clk 0:00:16]} 61. Bg4 {[%clk 0:00:12]}  Kf7 {[%clk 0:00:16]} 62. g6+ {[%clk 0:00:09]}  Kg7 {[%clk 0:00:16]} 63. Kg5 {[%clk 0:00:08]}  Be1 {[%clk 0:00:16]} 64. Be6 {[%clk 0:00:07]}  Bf2 {[%clk 0:00:15]} 65. Bh3 {[%clk 0:00:07]}  Be1 {[%clk 0:00:15]} 66. Kf5 {[%clk 0:00:07]}  Bg3 {[%clk 0:00:14]} 67. Kg5 {[%clk 0:00:06]}  Be1 {[%clk 0:00:14]} 68. Bg4 {[%clk 0:00:06]}  Bg3 {[%clk 0:00:13]} 69. Bh3 {[%clk 0:00:06]}  Be1 {[%clk 0:00:13]} 1/2-1/2


[Site "https://www.chess.com"]

[Event "Titled Tuesday Blitz February 28 Early 2023"]
[White "Dilmukhametov, Artur"]
[Black "Mahitosh, Dey"]
[WhiteFideId "24179922"]
[BlackFideId "25091468"]
[WhiteElo "2199"]
[BlackElo "2034"]
[Result "0-1"]
[Round "11"]
[TimeControl "180+2"]
[Date "2023.02.28"]
[WhiteClock "0:02:27"]
[BlackClock "0:02:37"]

1. d4 {[%clk 0:03:00]}  d5 {[%clk 0:02:57]} 2. Nc3 {[%clk 0:03:00]}  Nf6 {[%clk 0:02:58]} 3. Bf4 {[%clk 0:02:57]}  e6 {[%clk 0:02:59]} 4. e3 {[%clk 0:02:54]}  Bd6 {[%clk 0:02:58]} 5. Qf3 {[%clk 0:02:53]}  Bxf4 {[%clk 0:02:53]} 6. Qxf4 {[%clk 0:02:53]}  O-O {[%clk 0:02:52]} 7. Bd3 {[%clk 0:02:52]}  Nbd7 {[%clk 0:02:46]} 8. h4 {[%clk 0:02:51]}  c5 {[%clk 0:02:47]} 9. O-O-O {[%clk 0:02:50]}  c4 {[%clk 0:02:47]} 10. Be2 {[%clk 0:02:50]}  b5 {[%clk 0:02:47]} 11. g4 {[%clk 0:02:47]}  b4 {[%clk 0:02:46]} 12. Na4 {[%clk 0:02:47]}  Qa5 {[%clk 0:02:46]} 13. Nc5 {[%clk 0:02:45]}  Nxc5 {[%clk 0:02:44]} 14. dxc5 {[%clk 0:02:44]}  Qxa2 {[%clk 0:02:45]} 15. g5 {[%clk 0:02:37]}  Ne4 {[%clk 0:02:41]} 16. c3 {[%clk 0:02:32]}  b3 {[%clk 0:02:39]} 17. Bd3 {[%clk 0:02:27]}  cxd3 {[%clk 0:02:38]} 18. Rxd3 {[%clk 0:02:27]}  Qa1# {[%clk 0:02:37]} 0-1


[Site "https://www.chess.com"]

[Event "Titled Tuesday Blitz February 28 Early 2023"]
[White "Gholami Orimi, Mahdi"]
[Black "Larina, Maria"]
[WhiteFideId "12558486"]
[BlackFideId "24113182"]
[WhiteElo "2354"]
[BlackElo "1848"]
[Result "1-0"]
[Round "11"]
[TimeControl "180+2"]
[Date "2023.02.28"]
[WhiteClock "0:01:31"]
[BlackClock "0:00:08"]

1. e4 {[%clk 0:02:55]}  c6 {[%clk 0:02:59]} 2. d4 {[%clk 0:02:54]}  d5 {[%clk 0:03:00]} 3. Nc3 {[%clk 0:02:54]}  dxe4 {[%clk 0:03:00]} 4. Nxe4 {[%clk 0:02:55]}  Nf6 {[%clk 0:03:00]} 5. Nxf6+ {[%clk 0:02:55]}  exf6 {[%clk 0:03:00]} 6. c3 {[%clk 0:02:39]}  Bd6 {[%clk 0:02:57]} 7. Bd3 {[%clk 0:02:38]}  O-O {[%clk 0:02:57]} 8. Qc2 {[%clk 0:02:39]}  Re8+ {[%clk 0:02:57]} 9. Ne2 {[%clk 0:02:38]}  h5 {[%clk 0:02:57]} 10. Be3 {[%clk 0:02:26]}  Nd7 {[%clk 0:02:54]} 11. O-O-O {[%clk 0:02:26]}  Nf8 {[%clk 0:02:51]} 12. Kb1 {[%clk 0:02:26]}  g6 {[%clk 0:02:50]} 13. c4 {[%clk 0:02:19]}  f5 {[%clk 0:02:50]} 14. Nc3 {[%clk 0:02:18]}  f4 {[%clk 0:02:44]} 15. Bc1 {[%clk 0:02:18]}  Bc7 {[%clk 0:01:40]} 16. d5 {[%clk 0:02:09]}  Qh4 {[%clk 0:01:15]} 17. g3 {[%clk 0:02:08]}  fxg3 {[%clk 0:01:12]} 18. hxg3 {[%clk 0:02:09]}  Qg4 {[%clk 0:01:06]} 19. Rh4 {[%clk 0:02:06]}  Qf3 {[%clk 0:01:00]} 20. Be4 {[%clk 0:01:48]}  Qf6 {[%clk 0:00:55]} 21. Bf4 {[%clk 0:01:43]}  Bxf4 {[%clk 0:00:47]} 22. Rxf4 {[%clk 0:01:44]}  Qe7 {[%clk 0:00:21]} 23. dxc6 {[%clk 0:01:43]}  Rb8 {[%clk 0:00:19]} 24. Nd5 {[%clk 0:01:42]}  Qg5 {[%clk 0:00:12]} 25. Nf6+ {[%clk 0:01:40]}  Kg7 {[%clk 0:00:11]} 26. Nxe8+ {[%clk 0:01:39]}  Kg8 {[%clk 0:00:11]} 27. Nf6+ {[%clk 0:01:35]}  Kg7 {[%clk 0:00:10]} 28. Qc3 {[%clk 0:01:35]}  Kh6 {[%clk 0:00:08]} 29. Ng4+ {[%clk 0:01:32]}  hxg4 {[%clk 0:00:08]} 30. Qh8+ {[%clk 0:01:31]}  Nh7 {[%clk 0:00:08]} 31. Rh1+ {[%clk 0:01:32]}  Qh5 {[%clk 0:00:07]} 32. Rxh5+ {[%clk 0:01:32]}  gxh5 {[%clk 0:00:08]} 33. Qxh7+ {[%clk 0:01:32]}  Kg5 {[%clk 0:00:08]} 34. Qg7# {[%clk 0:01:31]} 1-0